bitfinex-derivatives/quotes_ETHF0:USTF0_20241004
["timestamp","ask_amount","ask_price","bid_price","bid_amount"]
[1728084096581,2.02629,2417.1,2417.0,0.80841]
[1728084100585,2.02629,2417.1,2417.0,0.3947]
[1728084101081,2.02629,2417.1,2417.0,0.80841]
[1728084103681,5.7502,2417.1,2416.8,0.3942]
[1728084103883,1.19,2416.9,2416.7,0.3943]
[1728084104083,1.60374,2416.9,2416.7,0.3943]
[1728084104280,0.3861,2416.8,2416.7,0.80806]
[1728084108084,0.3861,2416.8,2416.7,0.41376]
[1728084109181,0.3861,2416.8,2416.3,3.46457937]
[1728084109381,0.3861,2416.8,2416.7,0.41376]
[1728084110187,0.3861,2416.8,2416.3,0.84306033]
[1728084110487,0.3861,2416.8,2416.7,0.41376]
[1728084114190,0.3861,2416.8,2416.7,4.05424027]
[1728084114387,0.3861,2416.8,2416.7,3.82238134]
[1728084114586,0.3861,2416.8,2416.7,4.46800027]
[1728084115283,0.3861,2416.8,2416.7,0.41376]
[1728084115479,0.3861,2416.8,2416.7,4.48955475]
[1728084115684,0.3861,2416.8,2416.7,0.41376]
[1728084115885,0.3861,2416.8,2416.7,2.24687585]
[1728084116078,0.3861,2416.8,2416.7,4.48958726]
[1728084118296,0.3861,2416.8,2416.7,3.84405729]
[1728084118997,0.3861,2416.8,2416.7,3.80984457]
[1728084119988,0.3861,2416.8,2416.7,4.45541502]
[1728084121284,0.3861,2416.8,2416.7,2.23432378]
[1728084121484,0.3861,2416.8,2416.7,4.45615077]
[1728084121686,0.3861,2416.8,2416.7,3.81046007]
[1728084122393,0.3861,2416.8,2416.7,4.45615077]
[1728084125299,0.3861,2416.8,2416.7,5.41841609]
[1728084127397,0.3861,2416.8,2416.7,4.77272539]
[1728084128593,0.3861,2416.8,2416.7,1.98068844]
[1728084128792,0.3861,2416.8,2416.7,4.7748099]
[1728084132199,0.3861,2416.8,2416.7,0.41376]
[1728084132502,0.3861,2416.8,2416.7,4.77242434]
[1728084135811,1.19,2416.9,2416.7,4.35878764]
[1728084136007,4.0025,2417.0,2416.7,4.35878764]
[1728084136008,3.6156,2417.0,2416.9,0.41373]
[1728084136211,3.6156,2417.0,2416.9,4.45597762]
[1728084136406,3.6156,2417.0,2416.9,5.4187289]
[1728084138099,0.4078,2417.0,2416.9,5.4187289]
[1728084138304,6.14911,2417.0,2416.9,5.0049989]
[1728084138513,0.41376,2416.7,2416.6,0.64621685]
[1728084138710,0.41376,2416.7,2416.4,2.81754739]
[1728084138711,4.3978,2416.7,2416.4,2.81754739]
[1728084138906,1.19,2416.5,2416.4,2.17133054]
[1728084139212,2.139,2416.5,2416.2,2.71416318]
[1728084139513,4.81163,2416.3,2416.2,2.71416318]
[1728084139905,4.81163,2416.3,2415.8,4.21373846]
[1728084139906,0.41388,2416.1,2415.8,0.41391]
[1728084140209,1.19,2415.9,2415.8,0.41391]
[1728084140512,1.19,2415.9,2415.7,1.22143]
[1728084140812,1.19,2415.9,2415.8,0.41392]
[1728084141210,1.19,2415.9,2415.7,0.8075]
[1728084141504,1.60391,2415.9,2415.7,0.4034]
[1728084141910,0.41392,2415.8,2415.7,0.4034]
[1728084142105,0.41392,2415.8,2415.6,0.3851]
[1728084142307,1.19,2415.9,2415.6,0.79905]
[1728084142308,1.19,2415.7,2415.6,0.79905]
[1728084143011,1.19,2415.8,2415.6,0.79905]
[1728084143409,1.19,2415.8,2415.7,0.3997]
[1728084145511,1.60392,2415.8,2415.7,0.3997]
[1728084146706,1.19,2415.8,2415.7,0.3997]
[1728084147213,1.19,2415.8,2415.7,0.81363]
[1728084147810,1.19,2415.8,2415.7,0.3997]
[1728084150810,1.60392,2415.8,2415.7,0.3997]
[1728084152709,1.19,2415.8,2415.7,0.3997]
[1728084152913,1.19,2415.9,2415.8,0.41391]
[1728084153105,1.19,2415.9,2415.8,0.4091]
[1728084153106,1.6039,2415.9,2415.8,0.4091]
[1728084154612,1.19,2415.9,2415.8,0.82302]
[1728084154812,1.19,2415.9,2415.8,0.4091]
[1728084158223,1.19,2415.9,2415.8,0.82302]
[1728084158412,1.19,2415.9,2415.8,0.4091]
[1728084159620,1.6039,2415.9,2415.8,0.4091]
[1728084160225,3.2078,2416.0,2415.9,0.4139]
[1728084160425,4.3978,2416.0,2415.9,0.4139]
[1728084160611,3.2078,2416.0,2415.9,0.4139]
[1728084160817,3.2078,2416.0,2415.9,4.5531]
[1728084161017,3.2078,2416.0,2415.9,10.5531]
[1728084161320,3.2078,2416.3,2416.2,0.41385]
[1728084162427,4.3978,2416.3,2416.2,0.83845]
[1728084163028,4.3978,2416.3,2416.1,0.4044]
[1728084163224,0.41385,2416.2,2416.1,0.4044]
[1728084163832,0.82925,2416.2,2416.1,0.4044]
[1728084168433,0.4154,2416.2,2416.1,0.81826]
[1728084169432,0.82925,2416.2,2416.1,0.4044]
[1728084169926,0.82925,2416.2,2416.0,0.81457]
[1728084170231,1.19,2416.1,2416.0,0.81457]
[1728084170431,1.19,2416.1,2416.0,1.24147]
[1728084171332,1.19,2416.1,2416.0,5.38067]
[1728084175432,3.62164,2416.3,2416.2,0.41385]
[1728084175433,3.2078,2416.3,2416.2,0.41385]
[1728084175832,3.62163,2416.3,2416.1,0.41386]
[1728084178740,0.41383,2416.3,2416.1,0.41386]
[1728084179440,4.8055,2416.4,2416.0,0.8276]
[1728084179635,5.21932,2416.4,2416.2,0.41384]
[1728084179941,5.21932,2416.4,2416.3,0.4055]
[1728084182236,4.8055,2416.4,2416.2,0.41383]
[1728084182536,0.41383,2416.3,2416.2,0.41383]
[1728084184140,4.8055,2416.4,2416.2,0.95608835]
[1728084184447,5.21932,2416.4,2416.2,0.41383]
[1728084184647,5.21932,2416.4,2416.3,0.82853]
[1728084185052,5.21932,2416.4,2416.3,0.4147]
[1728084186539,5.21932,2416.4,2416.3,0.82853]
[1728084186743,5.21932,2416.4,2416.3,0.4147]
[1728084187244,5.21932,2416.4,2416.3,0.82853]
[1728084187439,5.21932,2416.4,2416.3,0.4147]
[1728084190355,4.8055,2416.4,2416.2,0.41384]
[1728084190650,0.41383,2416.3,2416.2,0.41384]
[1728084190853,0.41383,2416.3,2416.2,0.95603652]
[1728084192450,0.41383,2416.3,2416.2,0.41384]
[1728084192851,0.41383,2416.3,2416.2,0.95607323]
[1728084193048,0.41388,2416.1,2415.8,0.41392]
[1728084193356,0.41388,2416.0,2415.9,1.99726941]
[1728084193550,0.82238,2416.0,2415.9,0.54227566]
[1728084193754,0.82238,2416.0,2415.8,0.4139]
[1728084193950,0.82238,2416.0,2415.9,0.54230892]
[1728084194145,0.82238,2416.0,2415.9,0.95620892]
[1728084194544,2.01238,2416.0,2415.9,0.54230892]
[1728084196249,2.01238,2416.0,2415.7,0.41392]
[1728084196250,0.41392,2415.8,2415.7,0.41392]
[1728084196453,0.41392,2415.8,2415.7,0.95630335]
[1728084197157,1.60391,2415.9,2415.8,0.41392]
[1728084197351,0.4085,2416.0,2415.9,0.4139]
[1728084197553,3.2078,2416.1,2416.0,0.41388]
[1728084197753,4.81167,2416.1,2416.0,0.41388]
[1728084198052,4.3978,2416.1,2416.0,0.41388]
[1728084198252,4.3978,2416.1,2416.0,0.81038]
[1728084198647,3.2078,2416.1,2416.0,0.81038]
[1728084198847,0.4019,2416.3,2416.0,6.5333724]
[1728084199158,3.2078,2416.4,2416.2,0.41385]
[1728084199159,4.3978,2416.4,2416.2,0.41385]
[1728084199463,4.8044,2416.4,2416.3,0.4116]
[1728084200050,5.21821,2416.4,2416.1,1.23366]
[1728084200251,1.19,2416.2,2416.1,1.23366]
[1728084200654,1.19,2416.2,2416.1,1.77609089]
[1728084202954,1.19,2416.2,2416.1,3.23173209]
[1728084204156,5.21822,2416.4,2416.2,0.41384]
[1728084204355,4.02822,2416.4,2416.3,1.35119682]
[1728084204657,4.02822,2416.4,2416.3,0.93736682]
[1728084204658,5.21822,2416.4,2416.3,0.93736682]
[1728084205761,3.2078,2416.4,2416.3,0.93736682]
[1728084205962,3.2078,2416.4,2416.3,2.80716083]
[1728084206352,3.2078,2416.4,2416.3,6.94556083]
[1728084206955,4.3978,2416.8,2416.3,7.47207854]
[1728084207257,3.2078,2416.8,2416.7,0.41376]
[1728084207463,3.2078,2416.8,2416.7,0.95632682]
[1728084208758,4.3978,2416.8,2416.7,0.95632682]
[1728084209159,1.19,2416.8,2416.7,0.95632682]
[1728084210970,1.19,2416.8,2416.6,0.83537]
[1728084211166,3.62154,2416.8,2416.5,0.8099]
[1728084211369,2.01237,2416.7,2416.6,0.54197342]
[1728084211865,0.41378,2416.6,2416.5,0.8099]
[1728084212170,0.41378,2416.6,2416.5,0.54191861]
[1728084212464,4.55218,2416.6,2416.5,0.54190835]
[1728084212860,0.41381,2416.5,2416.3,0.4236]
[1728084213058,1.60381,2416.5,2416.4,0.54188273]
[1728084213261,1.60381,2416.5,2416.3,0.4236]
[1728084214267,1.60381,2416.5,2416.3,0.83743]
[1728084214468,1.60381,2416.5,2416.3,0.4236]
[1728084214663,1.60381,2416.5,2416.3,0.83743]
[1728084222076,4.81159,2416.6,2416.4,0.41381]
[1728084222372,4.3978,2416.6,2416.3,0.4236]
[1728084222572,0.4138,2416.5,2416.3,0.83742]
[1728084223173,4.3978,2416.6,2416.3,0.4236]
[1728084223475,4.81159,2416.6,2416.4,0.41381]
[1728084225489,0.4138,2416.5,2416.4,0.41381]
[1728084225892,4.81159,2416.6,2416.4,0.41381]
[1728084226792,4.3978,2416.6,2416.4,0.41381]
[1728084227093,0.4138,2416.5,2416.4,0.41381]
[1728084229493,4.3978,2416.6,2416.3,0.4236]
[1728084229686,4.3978,2416.6,2416.3,0.83742]
[1728084229687,0.41381,2416.4,2416.3,0.83742]
[1728084229891,0.41381,2416.4,2416.3,1.37928853]
[1728084230090,0.82041,2416.4,2416.3,1.37928853]
[1728084230286,0.4066,2416.4,2416.3,1.37928853]
[1728084230493,0.4066,2416.4,2416.3,1.37928885]
[1728084232303,0.4066,2416.4,2416.3,1.37928813]
[1728084232796,1.5851,2416.5,2416.4,0.41381]
[1728084232987,1.19,2416.5,2416.4,0.41381]
[1728084233387,1.6038,2416.5,2416.3,0.83742]
[1728084233794,1.6038,2416.5,2416.4,0.41381]
[1728084234496,1.6038,2416.5,2416.3,0.4236]
[1728084234691,1.6038,2416.5,2416.3,0.83742]
[1728084235596,1.6038,2416.5,2416.4,0.41381]
[1728084241488,1.6038,2416.5,2416.4,0.9558427]
[1728084241702,3.6287,2416.6,2416.4,0.9558427]
[1728084241703,5.23249,2416.6,2416.4,0.9558427]
[1728084241902,4.3978,2416.6,2416.3,0.4236]
[1728084242096,4.3978,2416.6,2416.5,0.4138]
[1728084243399,3.2078,2416.6,2416.5,0.4138]
[1728084243598,3.2078,2416.6,2416.5,0.95609464]
[1728084244702,3.2078,2416.6,2416.5,0.4138]
[1728084244998,3.2078,2416.6,2416.5,0.95622152]
[1728084248097,3.2078,2416.6,2416.5,0.4138]
[1728084248292,3.2078,2416.6,2416.5,0.95633827]
[1728084248494,3.2078,2416.6,2416.5,0.95639663]
[1728084249407,0.4087,2416.8,2416.7,0.41375]
[1728084249408,0.41375,2416.8,2416.7,0.41375]
[1728084249703,3.2078,2416.9,2416.7,0.41375]
[1728084249704,3.2078,2416.9,2416.8,0.41374]
[1728084250007,3.2078,2416.9,2416.8,0.95633663]
[1728084252203,3.62153,2416.9,2416.8,0.95633663]
[1728084257409,3.2078,2416.9,2416.8,0.95633663]
[1728084258108,3.2078,2416.9,2416.8,0.41374]
[1728084258308,3.2078,2416.9,2416.8,0.95602403]
[1728084260509,3.62153,2416.9,2416.8,0.95602403]
[1728084261409,3.62153,2416.9,2416.8,0.41374]
[1728084261612,3.62153,2416.9,2416.8,0.95587198]
[1728084262217,3.2078,2416.9,2416.8,0.95587198]
[1728084268016,3.2078,2416.9,2416.8,0.41374]
[1728084268218,3.2078,2416.9,2416.8,0.95568225]
[1728084268413,3.2078,2416.9,2416.8,0.41374]
[1728084268620,3.2078,2416.9,2416.8,0.95566791]
[1728084269612,3.62153,2416.9,2416.8,0.41374]
[1728084270015,4.00883,2416.9,2416.6,1.2506]
[1728084270215,4.00883,2416.9,2416.7,0.95570161]
[1728084270414,4.00883,2416.9,2416.7,0.41376]
[1728084272623,4.00883,2416.9,2416.8,0.41374]
[1728084274028,3.5951,2416.9,2416.8,0.41374]
[1728084274420,3.2078,2416.9,2416.8,0.95568287]
[1728084274730,4.02723,2416.9,2416.8,0.41374]
[1728084275929,4.02723,2416.9,2416.8,0.955695]
[1728084276427,4.02723,2416.9,2416.8,0.95571497]
[1728084277129,3.6135,2416.9,2416.8,0.95571497]
[1728084278027,3.6135,2416.9,2416.8,0.41374]
[1728084278423,3.6135,2416.9,2416.8,0.95573184]
[1728084281131,0.4057,2416.9,2416.8,0.95573184]
[1728084281432,0.4057,2416.9,2416.8,0.41374]
[1728084281730,0.4057,2416.9,2416.8,0.95584186]
[1728084282730,0.81943,2416.9,2416.8,0.95584186]
[1728084283727,0.4057,2416.9,2416.8,0.95584186]
[1728084284734,0.4057,2416.9,2416.8,0.41374]
[1728084285040,0.4057,2416.9,2416.8,0.95599571]
[1728084287132,0.4057,2416.9,2416.8,0.41374]
[1728084287332,0.4057,2416.9,2416.8,0.95605076]
[1728084287831,0.81943,2416.9,2416.8,0.95605076]
[1728084288230,0.81943,2416.9,2416.8,0.95610257]
[1728084288534,0.4057,2416.9,2416.8,0.95610257]
[1728084288738,0.4057,2416.9,2416.8,0.95615215]
[1728084289342,0.4057,2416.9,2416.8,1.82409166]
[1728084289539,0.4057,2416.9,2416.8,2.41166318]
[1728084289939,0.4057,2416.9,2416.8,1.8240914]
[1728084290445,0.4057,2416.9,2416.8,2.41183017]
[1728084291248,0.4057,2416.9,2416.8,2.41190715]
[1728084291443,0.4057,2416.9,2416.8,1.00145869]
[1728084291755,0.4057,2416.9,2416.8,2.41217922]
[1728084295354,0.4057,2416.9,2416.8,3.35346596]
[1728084295954,0.4057,2416.9,2416.8,2.41217922]
[1728084296147,0.4057,2416.9,2416.8,3.35348003]
[1728084298251,0.4057,2416.9,2416.8,1.002056]
[1728084298558,0.4057,2416.9,2416.8,3.35553527]
[1728084298746,0.4057,2416.9,2416.8,3.35553467]
[1728084299259,0.4057,2416.9,2416.8,2.41422944]
[1728084299651,0.4057,2416.9,2416.8,3.35554754]
[1728084300059,0.4057,2416.9,2416.8,2.41422944]
[1728084301055,0.4057,2416.9,2416.8,2.41426731]
[1728084301854,0.4057,2416.9,2416.8,3.35559264]
[1728084302055,0.4057,2416.9,2416.8,2.41426731]
[1728084302257,0.4057,2416.9,2416.8,3.35558648]
[1728084302458,0.4057,2416.9,2416.8,2.41426731]
[1728084302653,0.4057,2416.9,2416.8,2.94184952]
[1728084303255,0.4057,2416.9,2416.8,2.00052731]
[1728084303854,0.4057,2416.9,2416.8,2.94185897]
[1728084304156,0.4057,2416.9,2416.8,2.0005337]
[1728084304361,0.4057,2416.9,2416.8,2.94186523]
[1728084305352,0.4057,2416.9,2416.8,2.0005337]
[1728084306965,0.4057,2416.9,2416.8,2.9418867]
[1728084307157,0.4057,2416.9,2416.8,2.0005337]
[1728084307357,0.4057,2416.9,2416.8,1.52968951]
[1728084307663,0.4057,2416.9,2416.8,2.94193115]
[1728084307860,0.81943,2416.9,2416.8,2.94194748]
[1728084308158,0.81943,2416.9,2416.8,2.00060009]
[1728084310763,0.81943,2416.9,2416.8,2.00059407]
[1728084316377,6.835752,2417.2,2416.8,2.00059407]
[1728084316677,3.62152,2417.0,2416.9,3.20639407]
[1728084317571,0.41372,2417.0,2416.9,3.20639407]
[1728084317776,3.62152,2417.0,2416.9,1.79413091]
[1728084317967,3.62152,2417.0,2416.9,3.2063465]
[1728084320568,0.41372,2417.0,2416.9,3.2063465]
[1728084320775,3.62152,2417.0,2416.9,3.2063465]
[1728084322471,0.41372,2417.0,2416.9,3.2063465]
[1728084323274,3.62152,2417.0,2416.9,3.2063465]
[1728084323772,0.41372,2417.0,2416.9,2.61801559]
[1728084323976,3.62152,2417.0,2416.9,3.20635138]
[1728084325079,0.41372,2417.0,2416.9,3.20635138]
[1728084325280,3.62152,2417.0,2416.9,3.20635138]
[1728084325975,8.94912,2417.0,2416.9,0.54315984]
[1728084326273,18.732262,2417.0,2416.9,0.54315984]
[1728084326474,18.732262,2417.0,2416.4,0.7802]
[1728084326475,0.4138,2416.5,2416.4,0.7802]
[1728084326675,4.81159,2416.6,2416.4,4.13577424]
[1728084326886,4.81159,2416.6,2416.5,2.00047472]
[1728084327178,4.81159,2416.6,2416.5,0.58831342]
[1728084327378,5.21349,2416.6,2416.5,2.00050134]
[1728084329578,5.21349,2416.6,2416.5,1.99941037]
[1728084329781,4.7997,2416.6,2416.5,1.82534019]
[1728084329981,4.7997,2416.6,2416.5,2.41321315]
[1728084330377,4.7997,2416.6,2416.5,0.4138]
[1728084330676,4.7997,2416.6,2416.5,2.41262997]
[1728084330878,3.6097,2416.6,2416.5,2.41262997]
[1728084331077,3.6097,2416.6,2416.5,1.82476904]
[1728084331278,3.6097,2416.6,2416.5,0.9564804]
[1728084331781,3.6097,2416.6,2416.5,0.5426804]
[1728084332084,3.6097,2416.6,2416.5,0.9564804]
[1728084333681,3.6097,2416.6,2416.5,0.95633961]
[1728084335783,3.6097,2416.6,2416.5,0.54253961]
[1728084335983,3.2078,2416.6,2416.5,0.54253961]
[1728084336987,3.2078,2416.6,2416.5,0.95633961]
[1728084337382,3.2078,2416.6,2416.5,0.4138]
[1728084337574,3.2078,2416.6,2416.5,0.95619988]
[1728084340186,4.81158,2416.6,2416.5,0.54239988]
[1728084340586,4.81158,2416.6,2416.5,0.54232653]
[1728084340787,4.81158,2416.6,2416.4,0.7802]
[1728084341187,4.81158,2416.6,2416.5,0.54232566]
[1728084341387,4.81158,2416.6,2416.4,0.7802]
[1728084341784,4.3978,2416.6,2416.4,0.7802]
[1728084341994,0.41381,2416.5,2416.3,0.4223]
[1728084342194,0.80481,2416.5,2416.4,0.54231753]
[1728084342606,12.13321,2416.5,2416.4,0.54231753]
[1728084342897,12.13321,2416.5,2416.0,0.79927]
[1728084342898,0.41385,2416.2,2416.0,0.79927]
[1728084343092,1.60385,2416.2,2416.1,0.54233168]
[1728084343393,5.74305,2416.2,2416.1,0.54233168]
[1728084343597,6.16075,2416.2,2416.1,0.54219699]
[1728084343796,5.7469,2416.2,2416.1,0.54219699]
[1728084343989,1.6077,2416.2,2416.1,0.54219699]
[1728084344190,2.02155,2416.2,2416.1,0.54219995]
[1728084344393,2.02155,2416.2,2416.0,0.79927]
[1728084345091,2.02155,2416.2,2416.0,0.3854]
[1728084345491,2.02155,2416.2,2416.0,0.79928]
[1728084345794,1.6077,2416.2,2416.0,0.79928]
[1728084345999,1.6077,2416.2,2416.1,0.41386]
[1728084346693,1.6077,2416.2,2416.0,0.3854]
[1728084346889,5.7469,2416.2,2415.9,0.8165]
[1728084347094,1.6077,2416.2,2416.1,0.41386]
[1728084347598,8.9547,2416.2,2416.1,0.41386]
[1728084347801,9.36856,2416.2,2415.9,1.23039]
[1728084347992,5.22936,2416.2,2415.9,1.23039]
[1728084349199,1.19,2416.1,2415.9,1.23039]
[1728084349401,1.60387,2416.1,2415.9,1.23039]
[1728084351095,1.60387,2416.1,2415.9,0.8165]
[1728084353197,0.41388,2416.0,2415.9,0.8165]
[1728084353399,1.60388,2416.0,2415.8,0.81871]
[1728084353703,3.5931,2415.9,2415.8,0.81871]
[1728084354797,3.5931,2415.9,2415.8,0.4048]
[1728084354998,4.007,2415.9,2415.8,0.4048]
[1728084358004,3.5931,2415.9,2415.8,0.4048]
[1728084359303,3.2078,2415.9,2415.8,0.4048]
[1728084361002,3.6217,2415.9,2415.8,0.4048]
[1728084362601,3.2078,2415.9,2415.8,0.81872]
[1728084362800,3.62163,2416.3,2416.1,0.41386]
[1728084362996,3.62163,2416.3,2416.2,1.2506]
[1728084363196,7.76003,2416.3,2416.2,1.2506]
[1728084363912,8.95003,2416.3,2416.2,1.2506]
[1728084364603,3.2078,2416.3,2416.2,1.2506]
[1728084364912,3.2078,2416.3,2416.2,1.66445]
[1728084366207,9.09357,2416.7,2416.4,0.4138]
[1728084366411,4.81157,2416.7,2416.5,0.4105]
[1728084366607,4.81157,2416.7,2416.6,0.8435]
[1728084366912,4.3978,2416.7,2416.6,0.8435]
[1728084367314,3.2078,2416.7,2416.6,0.8435]
[1728084368307,3.62156,2416.7,2416.6,0.8435]
[1728084368509,4.81156,2416.7,2416.6,0.8435]
[1728084369217,3.2078,2416.7,2416.6,1.25728]
[1728084369717,3.2078,2416.7,2416.6,0.8435]
[1728084370007,3.2078,2416.7,2416.6,2.44728]
[1728084370212,3.2078,2416.7,2416.6,2.0335]
[1728084370609,3.2078,2416.7,2416.6,0.8435]
[1728084371210,3.2078,2416.7,2416.6,5.39488]
[1728084371509,3.2078,2416.7,2416.6,1.25728]
[1728084372215,3.2078,2416.7,2416.6,5.39488]
[1728084372612,3.62156,2416.7,2416.6,0.8435]
[1728084373718,3.2078,2416.7,2416.6,0.8435]
[1728084375313,3.2078,2416.7,2416.6,1.25728]
[1728084378509,3.2078,2416.7,2416.6,5.39488]
[1728084378815,3.2078,2417.0,2416.8,0.41373]
[1728084379124,3.62151,2417.0,2416.8,0.41373]
[1728084379311,3.62151,2417.0,2416.9,0.3856]
[1728084384718,3.62151,2417.0,2416.9,0.79933]
[1728084385320,3.2078,2417.0,2416.9,0.79933]
[1728084385521,3.62151,2417.0,2416.9,0.79933]
[1728084386417,3.62151,2417.0,2416.9,0.3856]
[1728084387011,3.62151,2417.0,2416.9,0.79933]
[1728084387521,3.62151,2417.0,2416.9,0.3856]
[1728084387820,3.62151,2417.0,2416.9,0.79933]
[1728084388412,3.62151,2417.0,2416.9,0.3856]
[1728084388822,3.62151,2417.0,2416.9,0.79933]
[1728084389724,3.62151,2417.0,2416.9,0.3856]
[1728084391818,0.41376,2416.7,2416.6,0.8435]
[1728084392325,3.62156,2416.7,2416.6,0.8435]
[1728084393219,3.2078,2416.7,2416.6,0.8435]
[1728084395029,3.2078,2416.7,2416.6,1.25728]
[1728084396228,0.4073,2416.9,2416.8,0.41374]
[1728084396421,3.62152,2417.0,2416.8,0.41374]
[1728084396629,3.2078,2417.0,2416.9,0.41373]
[1728084398837,3.2078,2417.0,2416.9,0.80513]
[1728084402144,3.2078,2417.0,2416.9,0.3914]
[1728084402336,3.2078,2417.0,2416.8,0.41374]
[1728084402337,3.62151,2417.0,2416.8,0.41374]
[1728084403647,3.2078,2417.0,2416.9,0.41373]
[1728084404242,3.2078,2417.0,2416.6,0.8435]
[1728084404548,0.41376,2416.7,2416.5,0.83008]
[1728084404940,0.3962,2416.6,2416.5,0.83008]
[1728084405441,0.3962,2416.6,2416.5,1.37141153]
[1728084406249,0.3962,2416.6,2416.5,0.95511153]
[1728084406447,0.3962,2416.6,2416.5,0.41378]
[1728084407643,0.3962,2416.6,2416.5,0.9553716]
[1728084407839,0.3962,2416.6,2416.5,0.41378]
[1728084408457,0.3962,2416.6,2416.5,0.95536897]
[1728084408643,0.3962,2416.6,2416.5,0.41378]
[1728084409152,0.3962,2416.6,2416.5,0.955652]
[1728084410243,0.3962,2416.6,2416.5,2.41071363]
[1728084411245,0.3962,2416.6,2416.5,3.60071363]
[1728084412042,0.3962,2416.6,2416.5,3.60152944]
[1728084416239,0.3962,2416.6,2416.5,2.41152944]
[1728084416944,3.62156,2416.8,2416.7,0.41376]
[1728084417141,4.03826,2416.8,2416.7,0.95616158]
[1728084417448,4.03826,2416.8,2416.7,0.54240158]
[1728084418744,4.03826,2416.8,2416.7,0.95616158]
[1728084421245,0.83046,2416.8,2416.7,0.95616158]
[1728084421549,4.03826,2416.8,2416.7,0.95616158]
[1728084421749,0.83046,2416.8,2416.7,0.95616158]
[1728084422144,4.03826,2416.8,2416.7,0.95616158]
[1728084422442,4.03826,2416.8,2416.7,0.54240158]
[1728084422642,4.03826,2416.8,2416.7,0.95616158]
[1728084422841,4.03826,2416.8,2416.7,0.54240158]
[1728084423754,4.03826,2416.8,2416.7,0.95616158]
[1728084424054,0.83046,2416.8,2416.7,0.95616158]
[1728084424245,4.03826,2416.8,2416.7,0.95616158]
[1728084424638,4.03826,2416.8,2416.7,0.54240158]
[1728084424845,4.03826,2416.8,2416.7,0.41376]
[1728084425046,4.03826,2416.8,2416.7,0.95631005]
[1728084425748,4.03826,2416.8,2416.7,0.54255005]
[1728084428342,4.03826,2416.8,2416.6,0.41377]
[1728084428548,4.03826,2416.8,2416.7,0.95628757]
[1728084428754,4.03826,2416.8,2416.7,0.95628716]
[1728084429559,8.17586,2416.8,2416.7,0.54252716]
[1728084429851,0.41376,2416.7,2416.6,0.41377]
[1728084430052,0.41376,2416.7,2416.6,0.95629321]
[1728084430253,4.55136,2416.7,2416.6,0.95629321]
[1728084430640,4.1376,2416.7,2416.6,0.95629321]
[1728084431955,4.1376,2416.7,2416.6,0.95628987]
[1728084432142,4.55136,2416.7,2416.6,0.95628987]
[1728084432548,4.1376,2416.7,2416.6,0.95628987]
[1728084433054,4.03826,2416.8,2416.7,0.41376]
[1728084433247,4.03826,2416.8,2416.7,0.95629492]
[1728084434156,3.2078,2416.8,2416.7,0.95629492]
[1728084434558,3.2078,2416.8,2416.7,2.21499492]
[1728084435256,3.2078,2416.8,2416.7,1.67246]
[1728084435448,3.2078,2416.8,2416.7,2.21501368]
[1728084435644,3.2078,2416.8,2416.7,2.75756803]
[1728084438058,3.2078,2416.8,2416.7,7.76333611]
[1728084438260,3.2078,2416.8,2416.7,8.3510513]
[1728084438850,3.2078,2416.8,2416.7,8.35103743]
[1728084439251,3.2078,2416.8,2416.7,7.80840721]
[1728084439655,3.2078,2416.8,2416.7,7.80841053]
[1728084442555,3.2078,2416.8,2416.7,7.80818899]
[1728084445960,3.2078,2416.8,2416.7,6.39768193]
[1728084446160,3.2078,2416.8,2416.7,7.80821266]
[1728084449159,3.2078,2416.8,2416.7,3.67061266]
[1728084449567,0.41371,2417.0,2416.9,0.41373]
[1728084449865,3.2078,2417.0,2416.9,0.41373]
[1728084450062,3.2078,2417.0,2416.9,0.95628724]
[1728084451162,3.62151,2417.0,2416.9,0.95628724]
[1728084451562,3.2078,2417.0,2416.9,0.95628724]
[1728084451762,3.62151,2417.0,2416.9,0.54255724]
[1728084451963,4.01301,2417.0,2416.9,0.54255724]
[1728084452363,4.01301,2417.0,2416.9,0.95628724]
[1728084453360,3.5993,2417.0,2416.9,0.41373]
[1728084453668,3.5993,2417.0,2416.9,0.95622073]
[1728084454772,4.01301,2417.0,2416.9,0.95622073]
[1728084455469,3.5993,2417.0,2416.9,0.95622073]
[1728084457166,3.5993,2417.0,2416.9,0.95618155]
[1728084457671,8.9269,2417.0,2416.5,1.08097453]
[1728084457867,0.41373,2416.9,2416.8,0.41374]
[1728084458067,0.41373,2416.9,2416.8,0.9561982]
[1728084458667,0.41373,2416.9,2416.8,0.5424582]
[1728084458869,4.55133,2416.9,2416.8,0.5424582]
[1728084460575,4.1376,2416.9,2416.6,0.41378]
[1728084460871,0.41376,2416.7,2416.4,3.47997453]
[1728084461069,0.41376,2416.7,2416.5,2.41193469]
[1728084461373,0.3932,2416.6,2416.5,1.00141147]
[1728084461574,0.3932,2416.6,2416.5,2.99958796]
[1728084462766,0.80698,2416.6,2416.5,2.99958796]
[1728084463476,0.3932,2416.6,2416.5,2.99958796]
[1728084464179,0.3932,2416.6,2416.5,0.58762147]
[1728084464379,0.3932,2416.6,2416.5,2.58587095]
[1728084464677,0.80698,2416.6,2416.5,2.58587095]
[1728084466173,1.99698,2416.6,2416.5,2.58587095]
[1728084466369,2.83748,2416.6,2416.5,0.58762147]
[1728084469478,2.4237,2416.6,2416.2,0.41385]
[1728084469678,3.62162,2416.4,2416.3,0.54235852]
[1728084470174,3.62162,2416.4,2416.2,0.41385]
[1728084470771,3.62162,2416.4,2416.1,0.82915]
[1728084470974,3.62162,2416.4,2416.2,0.54226827]
[1728084471175,3.62162,2416.4,2416.1,0.82915]
[1728084471377,3.62162,2416.4,2416.1,0.4153]
[1728084471378,0.41385,2416.2,2416.1,0.4153]
[1728084471569,0.41385,2416.2,2416.1,0.95750392]
[1728084471882,0.41385,2416.2,2416.1,0.4153]